bitfinex/quotes_SOLUSD_20250101
["timestamp","ask_amount","ask_price","bid_price","bid_amount"]
[1735727577646,20.0,190.93,190.83,65.82674269]
[1735727578854,20.0,190.91,190.83,65.82674269]
[1735727580059,20.0,190.91,190.83,65.0409]
[1735727580243,13.0949,190.92,190.83,65.0409]
[1735727580558,13.0917,190.96,190.84,1.5407]
[1735727580856,13.0896,191.0,190.88,6.4938]
[1735727581040,20.0,190.97,190.89,0.78555175]
[1735727581240,13.0896,191.0,190.89,0.78555175]
[1735727581455,13.0896,191.0,190.89,59.48555175]
[1735727582360,13.0869,191.03,190.89,59.48555175]
[1735727582861,20.0,190.99,190.89,69.1470482]
[1735727583353,20.0,190.99,190.89,59.48555175]
[1735727584462,20.0,190.98,190.89,59.48555175]
[1735727585629,23.776884,190.97,190.88,6.4938]
[1735727586230,20.0,190.94,190.88,6.4938]
[1735727587944,33.0937,190.94,190.88,6.4938]
[1735727590365,13.0944,190.92,190.87,1.5407]
[1735727590736,6.4938,191.0,190.87,1.5407]
[1735727590737,13.0921,190.96,190.87,1.5407]
[1735727591046,13.0921,190.96,190.88,0.78569755]
[1735727591841,27.7097,191.01,190.88,0.78569755]
[1735727592040,20.0,190.97,190.89,6.4893]
[1735727592260,23.776884,190.99,190.89,6.4893]
[1735727592558,20.0,190.96,190.89,65.1893]
[1735727597860,23.776884,190.95,190.89,65.1893]
[1735727598078,23.776884,190.95,190.89,6.4893]
[1735727598462,20.0,190.97,190.89,6.4893]
[1735727601553,13.0879,191.02,190.89,6.4893]
[1735727601886,23.776884,191.01,190.89,7.27492661]
[1735727602381,20.0,190.98,190.89,65.97492661]
[1735727604772,23.776884,191.01,190.89,65.97492661]
[1735727605880,20.0,191.01,190.89,65.97492661]
[1735727606063,23.776884,190.99,190.89,65.1893]
[1735727606464,43.776884,191.0,190.89,65.1893]
[1735727606667,39.2587,191.04,190.93,64.8808]
[1735727606668,13.0862,191.04,190.93,64.8808]
[1735727606868,13.0862,191.04,190.93,65.66616394]
[1735727608282,20.0,191.02,190.93,65.66616394]
[1735727610065,13.0883,191.01,190.93,64.8808]
[1735727613794,13.0883,191.01,190.94,0.78537723]
[1735727616091,13.0883,191.01,190.94,59.48537723]
[1735727617284,13.0883,191.01,190.94,58.7]
[1735727618993,13.0883,191.01,190.93,6.1808]
[1735727619407,13.0883,191.01,190.94,0.78543258]
[1735727624000,13.0861,191.05,190.94,0.78543258]
[1735727624502,13.0861,191.05,190.94,59.48543258]
[1735727632994,13.0861,191.05,190.95,1.5407]
[1735727634002,13.0861,191.05,190.95,60.2407]
[1735727639218,13.0861,191.05,190.96,65.8133583]
[1735727640222,13.0837,191.08,190.96,65.8133583]
[1735727640901,13.0837,191.08,190.96,75.47485475]
[1735727641394,20.0,191.07,190.96,75.47485475]
[1735727641715,13.0801,191.13,190.97,7.8687]
[1735727641898,13.0801,191.13,190.98,0.7851804]
[1735727642097,13.0801,191.13,191.0,1.6329]
[1735727642298,20.0,191.09,191.01,59.48502629]
[1735727642509,20.0,191.1,191.01,59.48502629]
[1735727642827,23.776884,191.12,191.01,59.48502629]
[1735727643140,13.0801,191.13,191.01,59.48502629]
[1735727643422,20.0,191.1,191.01,59.48502629]
[1735727643606,20.0,191.09,191.01,59.48502629]
[1735727643927,20.0,191.09,191.01,58.7]
[1735727644137,20.0,191.09,191.01,59.48517721]
[1735727644497,13.082,191.11,191.01,59.48517721]
[1735727644713,3.94224431,191.16,191.06,9.66149645]
[1735727644998,3.94224431,191.16,191.07,0.7847435]
[1735727645299,21.22223915,191.2,191.07,0.7847435]
[1735727645300,21.22223915,191.2,191.08,6.442]
[1735727645503,23.776884,191.19,191.08,6.442]
[1735727645697,26.1438,191.25,191.08,65.142]
[1735727645929,22.88329877,191.22,191.08,65.142]
[1735727646124,23.776884,191.17,191.08,6.442]
[1735727646330,23.776884,191.13,191.08,6.442]
[1735727647413,23.776884,191.13,191.05,1.6329]
[1735727647917,13.0807,191.12,191.05,1.6329]
[1735727648230,13.0759,191.19,191.05,1.6329]
[1735727648429,13.0759,191.19,191.07,6.442]
[1735727648807,20.0,191.16,191.07,6.442]
[1735727649434,23.776884,191.15,191.07,6.442]
[1735727649907,20.0,191.12,191.07,6.442]
[1735727651144,23.776884,191.11,191.07,6.442]
[1735727651352,36.858284,191.11,191.05,1.6329]
[1735727655942,56.1512,191.2,191.05,1.6329]
[1735727655943,26.1512,191.2,191.05,1.6329]
[1735727656140,13.0759,191.19,191.06,0.7850935]
[1735727656327,13.0759,191.19,191.07,6.2655]
[1735727656528,23.776884,191.18,191.07,6.2655]
[1735727656954,13.0759,191.19,191.07,6.2655]
[1735727657337,23.776884,191.18,191.07,6.2655]
[1735727659457,20.0,191.21,191.08,0.78480321]
[1735727660142,20.0,191.17,191.08,59.48480321]
[1735727660463,23.776884,191.16,191.08,58.7]
[1735727660837,20.0,191.13,191.07,6.2655]
[1735727671281,43.776884,191.12,191.05,1.6329]
[1735727672350,23.776884,191.1,191.05,1.6329]
[1735727673666,13.0848,191.06,191.0,1.5883]
[1735727673878,20.0,191.03,190.98,6.2211]
[1735727675062,13.0848,191.06,190.98,6.2211]
[1735727675476,20.0,191.03,190.98,6.2211]
[1735727676774,20.0,191.03,190.94,7.8094]
[1735727676954,23.776884,191.03,190.94,7.8094]
[1735727677159,23.776884,191.0,190.94,7.8094]
[1735727678353,5.0,191.08,190.94,66.5094]
[1735727678354,13.0835,191.08,190.94,66.5094]
[1735727678567,13.0835,191.08,190.95,0.78538633]
[1735727679059,13.0835,191.08,190.95,69.14688278]
[1735727679256,13.0835,191.08,190.96,68.36149645]
[1735727679477,2.88329877,191.09,190.98,64.9211]
[1735727679653,22.88329877,191.09,190.99,0.78513609]
[1735727680283,2.88329877,191.09,190.99,0.78513609]
[1735727680484,2.88329877,191.09,191.0,1.5883]
[1735727680687,22.88329877,191.09,191.0,1.5883]
[1735727680860,2.88329877,191.09,191.0,1.5883]
[1735727681479,22.88329877,191.09,191.0,1.5883]
[1735727687593,2.88329877,191.09,191.0,1.5883]
[1735727688177,23.776884,191.08,191.0,1.5883]
[1735727689105,15.96619877,191.09,191.0,1.5883]
[1735727691607,43.776884,191.05,190.94,6.1437]
[1735727692712,23.776884,191.03,190.94,6.1437]
[1735727693102,23.776884,190.99,190.94,6.1437]
[1735727693306,23.776884,190.99,190.93,1.5683]
[1735727695389,13.0903,190.98,190.9,6.1437]
[1735727695683,23.776884,190.97,190.9,6.1437]
[1735727696313,20.0,190.94,190.89,1.5683]
[1735727696622,20.0,190.94,190.86,6.1437]
[1735727697122,23.776884,190.93,190.86,6.1437]
[1735727697916,7.35076696,190.96,190.86,6.1437]
[1735727698093,13.0902,190.99,190.87,59.48588164]
[1735727698293,23.776884,190.98,190.87,59.48588164]
[1735727698588,23.776884,190.98,190.87,58.7]
[1735727698806,31.12765096,190.98,190.87,58.7]
[1735727703324,31.12765096,190.98,190.86,65.62939394]
[1735727706629,31.12765096,190.98,190.86,64.8437]
[1735727710124,20.0,190.93,190.86,6.1437]
[1735727710506,23.776884,190.92,190.86,6.1437]
[1735727715017,13.093,190.95,190.86,6.1437]
[1735727715018,7.35076696,190.97,190.86,6.1437]
[1735727715340,6.1381,190.95,190.83,58.7]
[1735727715637,23.776884,190.9,190.81,6.0023]
[1735727715945,29.66359433,190.9,190.81,6.0023]
[1735727717744,13.0985,190.87,190.74,66.6452]
[1735727718043,23.776884,190.83,190.74,7.9452]
[1735727718239,20.0,190.83,190.74,7.9452]
[1735727719639,23.776884,190.82,190.74,7.9452]
[1735727720548,31.12765096,190.82,190.74,7.9452]
[1735727726641,20.0,190.79,190.74,7.9452]
[1735727729450,23.776884,190.78,190.69,1.529]
[1735727729649,20.0,190.75,190.69,1.529]
[1735727730438,23.776884,190.78,190.69,1.529]
[1735727730649,20.0,190.75,190.69,1.529]
[1735727731028,36.883684,190.74,190.68,6.4162]
[1735727732845,7.35076696,190.79,190.68,6.4162]
[1735727733076,7.35076696,190.79,190.69,1.6617]
[1735727733247,22.05576696,190.85,190.7,10.44778198]
[1735727733455,23.776884,190.84,190.7,69.14778198]
[1735727733643,20.0,190.82,190.7,69.14778198]
[1735727733843,20.0,190.81,190.7,69.14778198]
[1735727734160,7.35076696,190.84,190.72,74.80309645]
[1735727734340,7.35076696,190.84,190.74,60.3617]
[1735727734541,7.35076696,190.84,190.75,0.78613661]
[1735727735967,26.89797654,190.89,190.75,59.48613661]
[1735727736276,20.0,190.86,190.75,59.48613661]
[1735727736470,20.0,190.85,190.75,59.48613661]
[1735727737965,20.0,190.79,190.75,0.78613661]
[1735727738169,48.1242394,190.78,190.67,6.4416]
[1735727738342,20.0,190.74,190.67,6.4416]
[1735727739872,27.4952114,190.74,190.67,6.4416]
[1735727740072,20.0,190.74,190.67,6.4416]
[1735727741956,7.62887929,190.78,190.67,6.4416]
[1735727742274,20.0,190.76,190.68,0.78647258]
[1735727744465,20.0,190.76,190.67,65.1416]
[1735727749259,20.0,190.76,190.68,0.78643873]
[1735727751166,20.0,190.76,190.67,65.1416]
[1735727754293,20.0,190.76,190.67,6.4416]
[1735727757401,20.0,190.76,190.67,65.1416]
[1735727762668,20.0,190.74,190.67,65.1416]
[1735727765204,29.91137905,190.84,190.63,11.3872443]
[1735727765205,26.1928,190.9,190.73,10.60070022]
[1735727765405,20.0,190.87,190.74,11.38676172]
[1735727765613,26.1928,190.9,190.74,70.08676172]
[1735727766114,23.776884,190.87,190.74,70.08676172]
[1735727766316,20.0,190.85,190.74,70.08676172]
[1735727767006,23.776884,190.87,190.74,70.08676172]
[1735727767305,23.776884,190.87,190.74,59.4860615]
[1735727767502,20.0,190.85,190.74,59.4860615]
[1735727768216,20.0,190.85,190.74,76.03175238]
[1735727769925,20.0,190.85,190.74,59.4860615]
[1735727771628,23.776884,190.87,190.74,59.4860615]
[1735727772725,26.1928,190.9,190.74,59.4860615]
[1735727773029,20.0,190.87,190.75,6.5698]
[1735727773227,20.0,190.86,190.76,59.48604116]
[1735727774615,23.776884,190.85,190.75,6.5698]
[1735727775129,43.776884,190.85,190.75,6.5698]
[1735727775920,23.776884,190.83,190.75,6.5698]
[1735727777421,23.776884,190.81,190.75,6.5698]
[1735727777833,13.1013,190.82,190.75,6.5698]
[1735727778617,43.776884,190.85,190.75,6.5698]
[1735727779798,56.876784,190.85,190.75,6.5698]
[1735727786918,83.075284,190.85,190.75,6.5698]
[1735727789936,56.876784,190.85,190.75,6.5698]
[1735727790103,13.0972,190.88,190.75,65.2698]
[1735727790311,13.0972,190.88,190.76,1.5413]
[1735727790534,23.776884,190.87,190.76,1.5413]
[1735727791109,13.0972,190.88,190.76,1.5413]
[1735727791434,20.0,190.86,190.76,1.5413]
[1735727791737,13.0951,190.91,190.76,60.2413]
[1735727792037,20.0,190.87,190.76,60.2413]
[1735727793442,23.776884,190.87,190.76,60.2413]
[1735727794345,20.0,190.86,190.76,60.2413]
[1735727801651,23.776884,190.88,190.76,60.2413]
[1735727802048,20.0,190.86,190.76,60.2413]
[1735727803751,20.0,190.85,190.76,60.2413]
[1735727805156,14.7488,190.92,190.77,65.77589197]
[1735727805328,23.51802824,190.92,190.77,65.77589197]
[1735727805528,20.0,190.84,190.77,6.2898]
[1735727805850,23.776884,190.83,190.77,6.2898]
[1735727808046,39.57815881,190.84,190.77,6.2898]
[1735727814854,13.0978,190.88,190.77,64.9898]
[1735727815450,43.776884,190.87,190.77,64.9898]
[1735727815667,20.0,190.85,190.77,64.9898]
[1735727819574,23.776884,190.87,190.77,64.9898]
[1735727819863,20.0,190.85,190.77,64.9898]
[1735727820158,20.0,190.84,190.77,6.2898]
[1735727823879,13.0993,190.85,190.77,6.2898]
[1735727824289,23.776884,190.84,190.77,6.2898]
[1735727824965,23.776884,190.82,190.77,6.2898]
[1735727825678,3.94582954,190.89,190.77,6.2898]
[1735727825886,13.0988,190.86,190.77,6.2898]
[1735727826066,23.776884,190.85,190.77,6.2898]
[1735727830579,33.0988,190.86,190.77,6.2898]
[1735727830783,20.0,190.86,190.77,6.2898]
[1735727831166,20.0,190.86,190.78,0.78600689]
[1735727832487,20.0,190.86,190.77,6.2898]
[1735727832665,20.0,190.86,190.79,1.80187258]
[1735727833397,20.0,190.86,190.77,6.2898]
[1735727833984,20.0,190.86,190.78,1.80207396]
[1735727834893,20.0,190.86,190.77,6.2898]
[1735727835387,20.0,190.86,190.77,65.775855]
[1735727835696,13.0966,190.89,190.77,65.775855]
[1735727836375,13.0966,190.89,190.78,1.8016693]
[1735727836574,43.776884,190.89,190.78,60.5016693]
[1735727836874,43.776884,190.89,190.79,1.8016693]
[1735727837687,43.776884,190.89,190.78,58.7]
[1735727842105,20.0,190.87,190.78,58.7]
[1735727842414,20.0,190.87,190.79,1.79996669]
[1735727843582,20.0,190.87,190.78,58.7]
[1735727843898,13.0964,190.9,190.78,58.7]
[1735727844093,18.83665995,190.93,190.79,77.83122002]
[1735727844408,5.74265995,190.93,190.81,34.37103183]
[1735727844600,8.14693915,190.96,190.83,69.29414783]
[1735727844899,20.0,190.93,190.84,59.48571732]
[1735727845100,8.14693915,190.96,190.84,59.48571732]
[1735727845290,23.776884,190.96,190.84,59.48571732]
[1735727845798,20.0,190.93,190.85,1.79699285]
[1735727846506,20.0,190.93,190.84,59.48571732]
[1735727846680,6.47775881,190.97,190.86,1.6035]
[1735727846879,6.47775881,190.97,190.86,12.98331948]
[1735727847688,6.47775881,190.97,190.86,2.38917165]
[1735727850396,6.47775881,190.97,190.86,61.08917165]
[1735727853014,23.776884,190.99,190.87,64.7857]
[1735727853185,23.776884,190.99,190.88,0.78555599]
[1735727853388,20.0,190.96,190.88,59.48555599]
[1735727855899,6.47775881,191.01,190.9,6.0857]
[1735727856208,13.0869,191.03,190.91,0.78539885]
[1735727856619,13.0869,191.03,190.91,59.48539885]
[1735727857811,13.0869,191.03,190.91,70.07954668]
[1735727858183,13.0869,191.03,190.92,60.2202]
[1735727858414,20.0,191.03,190.94,6.0857]
[1735727859496,20.0,191.03,190.95,0.78530154]
[1735727860020,20.0,191.03,190.96,1.5202]
[1735727860391,13.0829,191.09,190.98,6.0857]
[1735727860593,6.47775881,191.11,190.99,0.78514035]
[1735727861013,20.0,191.08,190.99,0.78514035]
[1735727863314,20.0,191.08,191.0,1.5202]
[1735727865524,20.0,191.06,191.0,1.5202]
[1735727866016,13.0842,191.07,191.0,1.5202]
[1735727866811,20.0,191.07,191.0,1.5202]
[1735727867821,13.0848,191.06,191.0,1.5202]
[1735727868327,13.0848,191.06,190.98,6.0857]
[1735727875428,6.47775881,191.07,190.98,6.87096977]
[1735727875614,13.0824,191.1,190.99,1.6538]
[1735727876214,6.47775881,191.12,191.0,0.78509319]
[1735727876406,6.47775881,191.12,191.01,6.3038]
[1735727876723,20.0,191.08,191.01,6.3038]
[1735727882029,23.776884,191.11,191.01,6.3038]
[1735727882419,20.0,191.07,191.01,6.3038]
[1735727883218,43.776884,191.07,190.99,60.3538]
[1735727883620,43.776884,191.07,190.99,1.6538]
[1735727885649,23.776884,191.06,190.99,1.6538]
[1735727885813,20.0,191.03,190.99,1.6538]
[1735727897543,1.554,191.15,190.99,71.73326797]
[1735727897751,1.554,191.15,191.01,6.1378]
[1735727898136,20.0,191.12,191.01,6.1378]
[1735727898339,20.0,191.12,191.01,6.9228463]
[1735727898546,20.0,191.1,191.01,65.6228463]
[1735727899134,20.0,191.08,191.01,64.8378]
[1735727900746,20.0,191.05,191.01,6.1378]
[1735727904559,20.0,191.03,190.97,6.1378]
[1735727905126,13.085,191.06,190.97,6.1378]
[1735727906834,23.776884,191.05,190.97,6.1378]
[1735727909666,23.776884,191.02,190.97,6.1378]
[1735727910058,23.776884,191.02,190.92,6.1378]
[1735727910965,20.0,190.99,190.92,6.1378]
[1735727912065,23.776884,191.0,190.92,6.1378]
[1735727913774,36.866384,191.0,190.92,6.1378]
[1735727916569,23.776884,191.0,190.92,6.1378]
[1735727920484,13.087,191.03,190.92,6.1378]
[1735727920900,23.776884,191.02,190.92,6.1378]
[1735727921075,13.087,191.03,190.92,6.1378]
[1735727921475,23.776884,191.02,190.92,6.1378]
[1735727922197,6.47775881,191.05,190.92,6.1378]
[1735727922394,6.47775881,191.05,190.93,0.78542242]
[1735727923178,20.0,191.02,190.93,0.78542242]
[1735727923490,20.0,191.02,190.92,6.92320658]
[1735727925779,20.0,191.02,190.92,65.62320658]
[1735727926676,6.47775881,191.05,190.93,1.6376]
[1735727926877,23.776884,191.04,190.93,1.6376]
[1735727931108,23.776884,191.04,190.93,60.3376]
[1735727931109,6.47775881,191.04,190.93,60.3376]
[1735727932851,20.0,191.01,190.93,60.3376]
[1735727933137,20.0,191.01,190.93,1.6376]
[1735727933737,23.776884,191.0,190.93,1.6376]
[1735727935409,20.0,191.01,190.93,1.6376]
[1735727935610,23.776884,191.0,190.93,1.6376]
[1735727941635,13.0881,191.02,190.93,1.6376]
[1735727942624,6.47775881,191.04,190.93,1.6376]
[1735727942842,6.47775881,191.04,190.93,60.3376]
[1735727948578,6.47775881,191.04,190.94,1.78861668]
[1735727949246,6.47775881,191.04,190.93,60.3376]
[1735727950272,6.47775881,191.04,190.94,1.78963865]
[1735727951183,6.47775881,191.04,190.93,60.3376]
[1735727952479,6.47775881,191.04,190.94,1.78952269]
[1735727952683,6.47775881,191.04,190.94,60.48952269]
[1735727953383,6.47775881,191.04,190.94,58.7]
[1735727954885,6.47775881,191.04,190.95,6.0958]
[1735727955086,1.6185,191.08,190.96,60.307]
[1735727955087,13.0837,191.08,190.96,60.307]
[1735727955370,12.22041876,191.09,190.96,61.09230543]
[1735727955576,6.47775881,191.09,190.97,6.0958]
[1735727955771,6.47775881,191.09,190.98,0.78514299]
[1735727956365,6.47775881,191.09,190.99,1.607]
[1735727958778,6.47775881,191.09,190.99,60.307]
[1735727962675,20.0,191.05,190.99,60.307]
[1735727964776,20.0,191.05,190.99,1.607]
[1735727966084,6.40277106,191.08,190.99,1.607]
[1735727966656,20.0,191.05,190.99,1.607]
[1735727970796,20.0,191.04,190.99,1.607]
[1735727973498,13.0846,191.07,190.99,1.607]
[1735727973681,6.40277106,191.07,190.99,1.607]
[1735727975081,19.48727106,191.07,190.99,1.607]
[1735727975477,6.40277106,191.07,190.99,1.607]
[1735727975688,19.56005881,191.1,190.99,1.607]
[1735727976082,20.0,191.09,190.99,1.607]
[1735727979713,20.0,191.09,190.99,60.307]
[1735727983903,6.47775881,191.1,191.01,65.2422]
[1735727984088,6.47775881,191.1,191.02,0.78500895]
[1735727985399,6.47775881,191.1,191.03,1.5516]
[1735727985598,6.40277106,191.12,191.04,59.48499352]
[1735727985908,13.08,191.14,191.05,6.5422]
[1735727986498,6.47775881,191.15,191.06,0.7849099]
[1735727992304,6.47775881,191.15,191.05,65.2422]
[1735727992305,30.17965506,191.14,191.05,65.2422]
[1735727993412,43.25905506,191.14,191.05,65.2422]
[1735727994295,19.48217106,191.14,191.05,6.5422]
[1735727995392,6.40277106,191.14,191.05,6.5422]
[1735727995596,6.40277106,191.14,191.05,7.32709713]
[1735727997686,6.40277106,191.14,191.05,66.02709713]
[1735728000894,6.40277106,191.14,191.06,8.0496]
[1735728003711,6.40277106,191.14,191.06,66.7496]
[1735728007603,30.25464281,191.13,191.06,8.0496]
[1735728007803,6.40277106,191.12,191.06,8.0496]
[1735728009020,6.40277106,191.12,191.0,7.8207]
[1735728009323,12.88052987,191.12,191.0,7.8207]
[1735728009701,23.776884,191.11,191.0,7.8207]
[1735728009902,30.25464281,191.11,191.0,7.8207]
[1735728014028,36.65741387,191.11,191.0,7.8207]
[1735728017414,36.65741387,191.11,191.0,18.41484783]
[1735728018626,36.65741387,191.11,191.0,7.8207]
[1735728018825,36.65741387,191.11,191.0,66.5207]
[1735728019609,6.40277106,191.1,191.0,66.5207]
[1735728020024,6.40277106,191.1,191.0,7.8207]
[1735728020025,23.776884,191.09,191.0,7.8207]
[1735728020240,23.776884,191.07,191.0,7.8207]
[1735728033046,43.26445506,191.06,190.96,8.0118]
[1735728034540,20.0,191.03,190.96,8.0118]
[1735728037518,23.776884,191.02,190.96,8.0118]
[1735728037730,36.864484,191.02,190.96,8.0118]
[1735728047950,20.0,190.99,190.96,8.0118]
[1735728051251,20.0,190.99,190.91,60.284]
[1735728051466,20.0,190.99,190.91,8.1016]
[1735728051634,32.88052987,190.99,190.91,8.1016]
[1735728054656,23.776884,190.98,190.91,8.1016]
[1735728055374,36.867184,190.98,190.91,8.1016]
[1735728055552,49.74771387,190.98,190.91,8.1016]
[1735728055876,20.0,190.94,190.91,6.5176]
[1735728056856,20.0,190.94,190.87,1.584]
[1735728062448,30.25464281,190.94,190.87,1.584]
[1735728064563,20.0,190.91,190.87,1.584]
[1735728064769,20.0,190.91,190.86,6.5176]
[1735728067064,36.872784,190.9,190.86,6.5176]
[1735728067251,36.872784,190.9,190.82,1.5358]
[1735728072465,20.0,190.87,190.82,1.5358]
[1735728073755,20.0,190.87,190.76,59.48594963]
[1735728073756,4.79546935,190.98,190.84,1.5358]
[1735728073959,1.6394,191.03,190.86,77.13624783]
[1735728074156,20.0,190.98,190.87,59.48562498]
[1735728074357,20.0,190.98,190.87,58.7]
[1735728074553,23.776884,190.93,190.86,7.8421]
[1735728075764,20.0,190.9,190.86,7.8421]
[1735728075965,23.776884,190.93,190.82,1.5358]
[1735728075966,20.0,190.89,190.82,1.5358]
[1735728081661,23.776884,190.88,190.82,1.5358]
[1735728081864,23.776884,190.88,190.81,6.3063]
[1735728082065,23.776884,190.86,190.81,6.3063]
[1735728083387,20.0,190.83,190.78,1.6414]
[1735728083575,23.776884,190.84,190.78,1.6414]
[1735728087996,20.0,190.81,190.78,1.6414]
[1735728089180,20.0,190.81,190.76,6.4647]
[1735728092897,23.776884,190.8,190.76,6.4647]
[1735728093082,20.0,190.81,190.74,1.6414]
[1735728093404,20.0,190.83,190.74,1.6414]
[1735728093595,20.0,190.79,190.74,1.6414]
[1735728094905,20.0,190.82,190.74,1.6414]
[1735728095202,18.00272277,190.88,190.75,6.0401]
[1735728095378,23.776884,190.87,190.75,6.0401]
[1735728096002,20.0,190.85,190.75,6.0401]
[1735728097800,36.877384,190.84,190.75,6.0401]
[1735728098192,20.0,190.81,190.75,6.0401]
[1735728099305,20.0,190.81,190.7,66.5258079]
[1735728099478,20.0,190.81,190.7,64.7401]
[1735728100515,20.0,190.77,190.7,6.0401]
[1735728101900,20.0,190.75,190.7,6.0401]
[1735728103291,23.776884,190.74,190.7,6.0401]
[1735728103899,23.776884,190.74,190.66,6.0401]
[1735728104209,36.884284,190.74,190.66,6.0401]
[1735728104720,20.0,190.71,190.66,6.0401]
[1735728105491,20.0,190.67,190.63,2.85862992]
[1735728105891,20.0,190.67,190.61,6.0401]
[1735728108897,13.1095,190.7,190.61,6.0401]
[1735728109112,10.594148,190.76,190.65,10.59414783]
[1735728109487,20.0,190.73,190.66,59.48650918]
[1735728109911,20.0,190.75,190.67,6.5326]
[1735728110101,20.0,190.75,190.69,1.5471]
[1735728110400,23.776884,190.8,190.69,1.5471]
[1735728110716,20.0,190.77,190.69,1.5471]
[1735728111114,20.0,190.78,190.69,1.5471]
[1735728116690,20.0,190.76,190.69,1.5471]
[1735728116895,20.0,190.74,190.69,1.5471]
[1735728117096,23.776884,190.77,190.69,1.5471]
[1735728117719,20.0,190.74,190.69,1.5471]
[1735728121016,20.0,190.77,190.69,1.5471]
[1735728122314,20.0,190.77,190.69,2.33352195]
[1735728122929,13.1004,190.84,190.72,16.55711487]
[1735728123099,4.90532277,190.9,190.75,16.55711487]
[1735728123304,6.01161629,190.88,190.75,76.04322125]
[1735728123717,20.0,190.85,190.75,76.04322125]
[1735728125105,20.0,190.85,190.75,59.48610638]
[1735728127313,33.0993,190.85,190.75,59.48610638]
[1735728127520,33.0993,190.85,190.74,7.7644]
[1735728128008,33.0993,190.85,190.74,8.55059543]
[1735728133011,33.0993,190.85,190.74,67.25059543]
[1735728135312,20.0,190.85,190.74,77.84182095]
[1735728135512,20.0,190.85,190.75,10.59122552]
[1735728135725,20.0,190.85,190.76,0.78606263]
[1735728136116,20.0,190.85,190.76,59.48606263]
[1735728138848,6.01161629,190.88,190.77,66.9147]
[1735728139049,4.90532277,190.96,190.81,1.5914]
[1735728139254,4.90532277,190.96,190.81,61.07723774]
[1735728139255,20.0,190.92,190.81,61.07723774]
[1735728140744,19.10451629,190.95,190.81,77.61301774]
[1735728140944,6.01161629,190.95,190.84,16.53578]
[1735728141266,20.0,190.92,190.86,1.5795]
[1735728142857,6.01161629,190.95,190.86,60.2795]
[1735728143156,23.776884,190.97,190.86,61.06516085]
[1735728143967,23.776884,190.97,190.86,60.2795]
[1735728144259,20.0,190.94,190.86,60.2795]
[1735728144461,13.0904,190.98,190.88,6.6176]
[1735728145065,20.0,190.95,190.88,6.6176]
[1735728146978,6.01161629,190.99,190.89,59.48558034]
[1735728147145,13.0884,191.01,190.9,1.5795]
[1735728147453,13.0884,191.01,190.91,59.4854544]
[1735728148155,20.0,190.98,190.91,59.4854544]
[1735728154777,20.0,191.01,190.91,59.4854544]
[1735728155351,20.0,190.97,190.91,58.7]
[1735728155564,20.0,190.97,190.9,60.2795]
[1735728156774,20.0,190.98,190.91,0.78549716]
[1735728159378,13.0889,191.01,190.91,0.78549716]
[1735728159565,20.0,190.98,190.91,0.78549716]
[1735728159875,20.0,191.01,190.92,6.0975]
[1735728160077,20.0,191.01,190.93,0.7853795]
[1735728163175,20.0,191.01,190.93,59.4853795]
[1735728164985,13.0841,191.08,190.94,70.77680745]
[1735728165182,13.0841,191.08,190.95,11.35573421]
[1735728165480,20.0,191.05,190.95,0.78522676]
[1735728166860,13.0841,191.08,190.95,0.78522676]
[1735728166861,23.776884,191.07,190.95,0.78522676]
[1735728167373,20.0,191.04,190.96,65.0627]
[1735728167574,23.776884,191.07,190.97,0.78522017]
[1735728168786,20.0,191.05,190.97,59.48522017]
[1735728169087,20.0,191.06,190.97,70.05572762]